Workbook

Sheet Partenaire Nantes-U
B1: Projet :
B2: Labo + tutelle :
B3: Durée du projet : | C3: 48 | D3: mois
A5: PERSONNELS PERMANENTS
A6: Type de personnels | B6: NOM Prénom | C6: Corps et grade (liste déroulante) | D6: Coût/mois chargé (moyenne) | E6: Implication en % recherche | F6: Implication en pers.mois | G6: Coût chargé total
A7: Personnels permanents sans financement demandé | B7: NOM prénom | C7: N.U MAITRE CONFERENCES CN | D7: =VLOOKUP(C7,'Listes permanents'!$C$7:$G$63,5,) -> 3753.125 | E7: 0.2 | F7: =E7*$C$3 -> 9.6 | G7: =D7*F7 -> 36030
B8: NOM prénom | C8: N.U PROFESSEUR UNIV.1CL. | D8: =VLOOKUP(C8,'Listes permanents'!$C$7:$G$63,5,) -> 5642.375 | F8: =E8*$C$3 -> 0 | G8: =D8*F8 -> 0
B9: NOM prénom | C9: N.U TECH. RECH. FORM CN | D9: =VLOOKUP(C9,'Listes permanents'!$C$7:$G$63,5,) -> 4524.5 | F9: 0 | G9: =D9*F9 -> 0
B10: NOM prénom | C10: N.U MAITRE CONFERENCES HC | D10: =VLOOKUP(C10,'Listes permanents'!$C$7:$G$63,5,) -> 4631.041667 | F10: 0 | G10: =D10*F10 -> 0
B11: NOM prénom | C11: N.U MAITRE CONFERENCES CN | D11: =VLOOKUP(C11,'Listes permanents'!$C$7:$G$63,5,) -> 3753.125 | F11: 0 | G11: =D11*F11 -> 0
A12: Total personnels permanents : | F12: =SUM(F7:F11) -> 9.6 | G12: =SUM(G7:G11) -> 36030
A14: PERSONNELS NON PERMANENTS
A15: Type de personnels | B15: NOM Prénom | C15: Corps et grade | D15: Coût/mois chargé (moyenne) | E15: Durée du contrat (mois) | F15: Implication en pers.mois | G15: Coût chargé total
A16: Non permanent à recruter sur le projet avec financement ANR | B16: à recruter | C16: post-doctorant | D16: =VLOOKUP(C16,'Listes non permanents'!$A$2:$B$20,2,) -> 4166.6666 | F16: =E16 -> 0 | G16: =D16*F16 -> 0
B17: à recruter | C17: doctorant | D17: =VLOOKUP(C17,'Listes non permanents'!$A$2:$B$20,2,) -> 3472.22 | F17: =E17 -> 0 | G17: =D17*F17 -> 0
B18: à recruter | C18: stagiaire Master 2 | D18: =VLOOKUP(C18,'Listes non permanents'!$A$2:$B$20,2,) -> 735 | F18: =E18 -> 0 | G18: 0
B19: à recruter | C19: ingé études (2-5 ans expérience) | D19: =IF(E19<=12,VLOOKUP(C19,'Listes non permanents'!$A$2:$B$20,2,)*1.1,VLOOKUP(C19,'Listes non permanents'!$A$2:$B$20,2,)) -> 3399.583 | F19: 0 | G19: 0
B20: à recruter | C20: technicien cat B (10-15 ans expérience) | D20: =IF(E20<=12,VLOOKUP(C20,'Listes non permanents'!$A$2:$B$20,2,)*1.1,VLOOKUP(C20,'Listes non permanents'!$A$2:$B$20,2,)) -> 3384.293 | F20: 0 | G20: 0
B21: à recruter | C21: ingé recherche (soutenance thèse > 3ans) (2-5 ans expérience) | D21: =IF(E21<=12,VLOOKUP(C21,'Listes non permanents'!$A$2:$B$20,2,)*1.1,VLOOKUP(C21,'Listes non permanents'!$A$2:$B$20,2,)) -> 4500.21 | F21: 0 | G21: 0
A22: Non permanents sans financement ANR | B22: à recruter | D22: 0 | F22: 0 | G22: 0
D23: 0 | F23: 0 | G23: 0
A24: Total personnels non permanents : | F24: =+SUM(F16:F23) -> 0 | G24: =SUM(G16:G23) -> 0
A26: Equipements | C26: =SUM(C28:C29) -> 0
A27: Type de dépenses | B27: Précisions/Commentaires | C27: Montant
A28: Achat de équipements scientifiques (hors consommables)
A29: Achat de matériels informatiques
A30: Prestations de services | C30: =SUM(C32:C46) -> 0
A31: Type de dépenses | B31: Précisions/Commentaires | C31: Montant
A32: Achat licences, logiciel, base de données
A33: Informatique (programmation, développement)
A34: Commutation de données, traitement, conversion, saisie, collecte, stockage, transmission, gestion, classification et constitution de bases de données
A35: Salle blanche, essais de caractérisation, utilisation bancs d'essai
A36: Animalerie
A37: Accès TGIR
A38: Facturation interne prestation Plate-forme type Microscopie, Séquençages, Spectométrie
A39: Prestation externe Microscopie, Séquençages, Spectométrie
A40: Etudes techniques, de sol, topographie, cartographie
A41: Conseils juridiques (rédaction/négociation de l’accord de consortium, conseils en matière de brevets, droits d’auteurs et droits voisins,
A42: Etudes de marché, sondages, statistiques, enquêtes (conception, réalisation, réalisation et analyse d’enquêtes, évaluation de l’impact économique, des performances, sondages d’opinion, enquêtes auprès des consommateurs)
A43: Traduction, transcription, numérisation de texte
A44: Publications, archives
A45: Collecte, enlèvement, élimination de déchets polluants
A46: Autres
A47: Autres frais | C47: =SUM(C49:C55) -> 0
A48: Type de dépenses | B48: Précisions/Commentaires | C48: Montant
A49: Frais de mission réunion de projet
A50: Frais de missions inscriptions aux colloques
A51: Frais organisation séminaire, colloque
A52: Consommables scientifiques
A53: Location /coût utilisation matériel scientifique
A54: Maintenance/Révisions/Entretien de matériels
A55: Batiments et terrains (aménagement, location) | B55: pas concernés côté Nantes U | C55: 0
B59: SYNTHESE (A REPORTER SUR LE SITE)
B60: Personnels Permanents sans financement demandé | D60: non Permanents avec financement ANR | F60: non Permanents sans financement ANR | H60: Equipements | I60: =A30 -> Prestations de services | J60: =A47 -> Autres frais
B61: Coût | C61: Personne.mois | D61: Coût | E61: Personne.mois | F61: Coût | G61: Personne.mois
B62: =G12 -> 36030 | C62: =F12 -> 9.6 | D62: =SUM(G16:G21) -> 0 | E62: =SUM(F16:F21) -> 0 | F62: =SUM(G22:G23) -> 0 | G62: =SUM(F22:F23) -> 0 | H62: =C26 -> 0 | I62: =C30 -> 0 | J62: =C47 -> 0
I63: ! Ce poste de dépense doit être <50% du montant de l'aide demandée par le bénéficiaire !
C64: Total coûts déclarés | D64: =B62+D62+F62+H62+I62+J62 -> 36030 | F64: Frais d'environnement : Frais de la Tutelle (10,5%) | G64: =D66*10.5% -> 0
C65: Taux d'aide demandée (%) | D65: 1 | F65: Frais d'environnement : Frais de la structure de recherche (3%) | G65: =D66*3% -> 0
C66: Assiette calcul préciput (=aide demandée hors frais d'environnement) | D66: =D62+H62+I62+J62 -> 0 | F66: Total des frais (13,5%) | G66: =SUM(G64:G65) -> 0
B68: TOTAL Aide demandée : | D68: =D66+G66 -> 0
C70: dont | E70: € au titre de la facturation interne sur la totalité du projet
C71: dont | E71: € au titre de la facture entre partenaires sur la totalité du projet
C72: dont | E72: € au titre de la science ouverte
C74: Part de l'aide allouée dédiée aux prestations et droits de PI | D74: =I62/D68 -> 

Sheet Budget Total projet
B1: Projet :
B2: Durée du projet : | C2: 48 | D2: mois
I5: ⬇ nouvelles catégories de dépenses ANR AAPG 2026 ⬇
B6: Partenaires | C6: Permanents | D6: Permanents (p.mois) | E6: Non permanents avec financement demandé ANR (€) | F6: Non permanents avec financement demandé ANR (p.mois) | G6: Non permanents sans financement demandé ANR (€) | H6: Non permanents sans financement demandé ANR (p.mois) | I6: Equipements | J6: Prestations de service | K6: Autres frais | L6: Total hors frais de gestion | M6: Frais de gestion (13,5%) | N6: Total aide demandée/partenaire
A7: coût marginal pour partenaires publics | B7: Labo Nantes Université | C7: ='Partenaire Nantes-U'!G12 -> 36030 | D7: ='Partenaire Nantes-U'!F12 -> 9.6 | E7: ='Partenaire Nantes-U'!D62 -> 0 | F7: ='Partenaire Nantes-U'!E62 -> 0 | G7: ='Partenaire Nantes-U'!F62 -> 0 | H7: ='Partenaire Nantes-U'!G62 -> 0 | I7: ='Partenaire Nantes-U'!H62 -> 0 | J7: ='Partenaire Nantes-U'!I62 -> 0 | K7: ='Partenaire Nantes-U'!J62 -> 0 | L7: =E7+I7+J7+K7 -> 0 | M7: =L7*13.5% -> 0 | N7: =L7+M7 -> 0
L8: =E8+I8+J8+K8 -> 0 | M8: =L8*13.5% -> 0 | N8: =L8+M8 -> 0
L10: 0 | M10: 0 | N10: 0
A12: coût complet pour entreprises | C12: ---------------------------------------------------- non concerné ------------------------------------------------------------------------------ | N12: 0
C13: ---------------------------------------------------- non concerné ------------------------------------------------------------------------------ | N13: 0
C15: Total aide demandée projet : | K15: =SUM(N7:N12) -> 0

Sheet Listes permanents
A1: A utiliser uniquement pour les montages des projets coûts marginaux
A2: Pour tout renseignement complémentaire, n'hésitez pas à contacter les chargés de projets du SAIP
C3: Mises à jour grille Nantes Université 30/08/2024, INSERM/CNRS 2023
D4: Moyenne | E4: Moyenne | F4: Moyenne | G4: Moyenne
G5: Coût mensuel chargé à retenir
A6: Population | B6: Corps | C6: Grade | D6: Coût annuel/ETPT en € | E6: Coût mensuel chargé | F6: Coût horaire chargé D/1607 | G6: pour évaluation ANR en €
A7: NU BIATSS | B7: ADJOINT TECHNIQUE DE RECH.ET FORMATION | C7: N.U. ADJ.T.PAL.REC.FOR.2C | D7: 48907 | E7: =D7/12 -> 4075.583333 | F7: =D7/1607 -> 30.43372744 | G7: =E7 -> 4075.583333
A8: NU BIATSS | B8: ADJOINT TECHNIQUE DE RECH.ET FORMATION | C8: N.U. ADJ.T.PAL RE.FOR.1C | D8: 53461 | E8: =D8/12 -> 4455.083333 | F8: =D8/1607 -> 33.26757934 | G8: =E8 -> 4455.083333
A9: NU BIATSS | B9: ADJOINT TECHNIQUE DE RECH.ET FORMATION | C9: N.U ADJ.TECH.RECH.FORM | D9: 47068 | E9: =D9/12 -> 3922.333333 | F9: 29.28935905 | G9: 3922.333333
A10: NU BIATSS | B10: TECHNICIEN DE RECH.ET FORMATION | C10: N.U TECH. RECH. FORM CN | D10: 54294 | E10: 4524.5 | F10: 33.78593653 | G10: 4524.5
A11: NU BIATSS | B11: TECHNICIEN DE RECH.ET FORMATION | C11: N.U TECH. RECH. FORM CS | D11: 57547 | E11: 4795.583333 | F11: 35.81020535 | G11: 4795.583333
A12: NU BIATSS | B12: TECHNICIEN DE RECH.ET FORMATION | C12: N.U TECH. RECH. FORM CE | D12: 64731 | E12: 5394.25 | F12: 40.28064717 | G12: 5394.25
A13: NU BIATSS | B13: ASSISTANT INGENIEUR DE RECH.ET FORMATION | C13: N.U ASSISTANT INGENIEUR | D13: 69214 | E13: 5767.833333 | F13: 43.07031736 | G13: 5767.833333
A14: NU BIATSS | B14: INGENIEUR D'ETUDES DE RECH.ET FORMATION | C14: N.U ING. ETUDES CN | D14: 72994 | E14: =D14/12 -> 6082.833333 | F14: =D14/1607 -> 45.42252645 | G14: =E14 -> 6082.833333
A15: NU BIATSS | B15: INGENIEUR D'ETUDES DE RECH.ET FORMATION | C15: N.U ING. ETUDES HC | D15: 91472 | E15: =D15/12 -> 7622.666667 | F15: =D15/1607 -> 56.92097075 | G15: =E15 -> 7622.666667
A16: NU BIATSS | B16: INGENIEUR DE RECHERCHE RF | C16: N.U INGENIEUR RECHER.CN | D16: 99894 | E16: 8324.5 | F16: 62.16179216 | G16: 8324.5
A17: NU BIATSS | B17: INGENIEUR DE RECHERCHE RF | C17: N.U INGENIEUR RECHER.HC. | D17: 121337 | E17: 10111.41667 | F17: 75.50528936 | G17: 10111.41667
A20: NU Enseignants, chercheurs | B20: MAITRE DE CONFERENCES | C20: N.U MAITRE CONFERENCES HC | D20: 111145 | E20: =D20/12 -> 9262.083333 | F20: =D20/1607 -> 69.16303671 | G20: =E20/2 -> 4631.041667
A21: NU Enseignants, chercheurs | B21: MAITRE DE CONFERENCES | C21: N.U MAITRE CONFERENCES CN | D21: 90075 | E21: =D21/12 -> 7506.25 | F21: =D21/1607 -> 56.05164904 | G21: 3753.125
A22: NU Enseignants, chercheurs | B22: MAITRE DE CONF UNIV. - PRATICIEN HOSP. | C22: N.U MAITRE CONF 2C HOSP | D22: 67809 | E22: 5650.75 | F22: 42.19601742 | G22: 2825.375
A23: NU Enseignants, chercheurs | B23: MAITRE DE CONF UNIV. - PRATICIEN HOSP. | C23: N.U MAITRE CONF 1C HOSP | D23: 89647 | E23: 7470.583333 | F23: 55.78531425 | G23: 3735.291667
A24: NU Enseignants, chercheurs | B24: MAITRE DE CONF UNIV. - PRATICIEN HOSP. | C24: N.U MAITRE CONF HC HOSP | D24: 109739 | E24: 9144.916667 | F24: 68.2881145 | G24: 4572.458333
A25: NU Enseignants, chercheurs | B25: PROFESSEUR DES UNIVERSITES - PRATICIEN HOSPITALIER | C25: N.U PROF.2C UNIV.HOSPIT. | D25: 100690 | E25: 8390.833333 | F25: 62.65712508 | G25: 4195.416667
A26: NU Enseignants, chercheurs | B26: PROFESSEUR DES UNIVERSITES - PRATICIEN HOSPITALIER | C26: N.U PROF.1C UNIV.HOSPIT. | D26: 130838 | E26: 10903.16667 | F26: 81.41754823 | G26: 5451.583333
A27: NU Enseignants, chercheurs | B27: PROFESSEUR DES UNIVERSITES - PRATICIEN HOSPITALIER | C27: N.U PROF.CE UNIV.HOSPIT. | D27: 153161 | E27: 12763.41667 | F27: 95.30864966 | G27: 6381.708333
A28: NU Enseignants, chercheurs | B28: PROFESSEUR DES UNIVERSITES - PH ODONTO | C28: N.U PROF.2C UNIV.HOSPIT. ODONT | D28: 105433 | E28: 8786.083333 | F28: 65.60858743 | G28: 4393.041667
A29: NU Enseignants, chercheurs | B29: PROFESSEUR DES UNIVERSITES - PH ODONTO | C29: N.U PROF.1C UNIV.HOSPIT. ODONT | D29: 134112 | E29: 11176 | F29: 83.45488488 | G29: 5588
A30: NU Enseignants, chercheurs | B30: PROFESSEUR DES UNIVERSITES - PH ODONTO | C30: N.U PROF.CE UNIV.HOSPIT. ODONT | D30: 162779 | E30: 13564.91667 | F30: 101.293715 | G30: 6782.458333
A31: NU Enseignants, chercheurs | B31: PROFESSEUR DES UNIVERSITES | C31: N.U PROFESSEUR UNIV.2CL. | D31: 110890 | E31: 9240.833333 | F31: 69.00435594 | G31: 4620.416667
A32: NU Enseignants, chercheurs | B32: PROFESSEUR DES UNIVERSITES | C32: N.U PROFESSEUR UNIV.1CL. | D32: 135417 | E32: 11284.75 | F32: 84.26695706 | G32: 5642.375
A33: NU Enseignants, chercheurs | B33: PROFESSEUR DES UNIVERSITES | C33: N.U PROFESSEUR UNIV.CE. | D33: 154681 | E33: 12890.08333 | F33: =D33/1607 -> 96.25451151 | G33: =E33/2 -> 6445.041667
A35: CNRS DR | B35: CNRS DIRECTEUR DE RECHERCHES | C35: CNRS DR CE DIRECTEUR DE RECHERCHE | D35: 161334 | E35: =D35/12 -> 13444.5 | G35: =E35 -> 13444.5
A36: CNRS DR | B36: CNRS DIRECTEUR DE RECHERCHES | C36: CNRS DR 1CL DIRECTEUR DE RECHERCHE | D36: 143082 | E36: =D36/12 -> 11923.5 | G36: =E36 -> 11923.5
A37: CNRS DR | B37: CNRS DIRECTEUR DE RECHERCHES | C37: CNRS DR 2CL DIRECTEUR DE RECHERCHE | D37: 119359 | E37: =D37/12 -> 9946.583333 | G37: =E37 -> 9946.583333
A38: CNRS CR | B38: CNRS CHARGE DE RECHERCHES | C38: CNRS CR HC CHARGE DE RECHERCHE | D38: 116471 | E38: =D38/12 -> 9705.916667 | G38: =E38 -> 9705.916667
A39: CNRS CR | B39: CNRS CHARGE DE RECHERCHES | C39: CNRS CR CN CHARGE DE RECHERCHE | D39: 94101 | E39: =D39/12 -> 7841.75 | G39: =E39 -> 7841.75
A41: CNRS BIATSS | B41: CNRS ING RECH | C41: CNRS ING RECH H.CL | D41: 124733 | E41: =D41/12 -> 10394.41667 | G41: =E41 -> 10394.41667
A42: CNRS BIATSS | B42: CNRS ING RECH | C42: CNRS ING RECH CN | D42: 94616 | E42: =D42/12 -> 7884.666667 | G42: =E42 -> 7884.666667
A43: CNRS BIATSS | B43: CNRS ING D'ETUDES | C43: CNRS ING D'ETUDES H.CL | D43: 87937 | E43: 7328.083333 | G43: 7328.083333
A44: CNRS BIATSS | B44: CNRS ING D'ETUDES | C44: CNRS ING D'ETUDES CN | D44: 69884 | E44: 5823.666667 | G44: 5823.666667
A45: CNRS BIATSS | B45: CNRS ASSISTANT INGENIEUR | C45: CNRS ASI | D45: 66712 | E45: 5559.333333 | G45: 5559.333333
A46: CNRS BIATSS | B46: CNRS T CL except | C46: CNRS T CL except | D46: 65280 | E46: 5440 | G46: 5440
A47: CNRS BIATSS | B47: CNRS T CL supérieur | C47: CNRS T CL supérieur | D47: 58441 | E47: 4870.083333 | G47: 4870.083333
A48: CNRS BIATSS | B48: CNRS T CL Normale | C48: CNRS T CL Normale | D48: 52377 | E48: 4364.75 | G48: 4364.75
A49: CNRS BIATSS | B49: CNRS Adjoint Technique Recherche Principal 1 | C49: CNRS ATRP1 (C3) | D49: 53587 | E49: 4465.583333 | G49: 4465.583333
A50: CNRS BIATSS | B50: CNRS Adjoint Technique Recherche Principal 2 | C50: CNRS ATRP2 (C2) | D50: 49581 | E50: 4131.75 | G50: 4131.75
A51: CNRS BIATSS | B51: CNRS Adjoint Technique Recherche | C51: CNRS ATR (C1) | D51: 44440 | E51: 3703.333333 | G51: 3703.333333
A53: INSERM DR | B53: INSERM DIRECTEUR DE RECHERCHE | C53: INSERM DR DIRECTEUR DE RECHERCHE | D53: 110500 | E53: =D53/12 -> 9208.333333 | G53: =E53 -> 9208.333333
A54: INSERM CR | B54: INSERM CHARGE DE RECHERCHE | C54: INSERM CR CHARGE DE RECHERCHE | D54: 81100 | E54: =D54/12 -> 6758.333333 | G54: =E54 -> 6758.333333
A55: INSERM Chercheurs | B55: INSERM CHERCHEURS | C55: INSERM Chercheurs | D55: 92800 | E55: 7733.333333 | G55: 7733.333333
A57: INSERM BIATSS | B57: INSERM INGENIEUR DE RECHERCHE 1 | C57: INSERM INGENIEUR RECH 1 | D57: 83800 | E57: 6983.333333 | G57: 6983.333333
A58: INSERM BIATSS | B58: INSERM INGENIEUR DE RECHERCHE 2 | C58: INSERM INGENIEUR RECH 2 | D58: 76300 | E58: 6358.333333 | G58: 6358.333333
A59: INSERM BIATSS | B59: INSERM INGENIEUR D'ETUDES | C59: INSERM INGENIEUR ETUDES 1 | D59: 72900 | E59: 6075 | G59: 6075
A60: INSERM BIATSS | B60: INSERM INGENIEUR D'ETUDES CN | C60: INSERM INGENIEUR ETUDES CN | D60: 67000 | E60: 5583.333333 | G60: 5583.333333
A61: INSERM BIATSS | B61: INSERM ASSISTANT INGENIEUR | C61: INSERM ASSISTANT INGENIEUR AI | D61: 62100 | E61: 5175 | G61: 5175
A62: INSERM BIATSS | B62: INSERM TECHNICIEN DE RECHERCHE | C62: INSERM TECH RECH | D62: 58400 | E62: 4866.666667 | G62: 4866.666667
A63: INSERM BIATSS | B63: INSERM ADJOINT TECHNIQUE | C63: INSERM ADJ T | D63: 51600 | E63: 4300 | G63: 4300

Sheet Listes non permanents
A1: Personnels non permanents | B1: coût mensuel chargé (+200€ frais transports et suppléments familiaux)
A2: post-doctorant | B2: 4166.6666
A3: doctorant | B3: 3472.22
A4: stagiaire Master 2 | B4: =735 -> 735
A5: ingé études (0-1 an expérience) | B5: =2744.61+200 -> 2944.61
A6: ingé études (2-5 ans expérience) | B6: =2890.53+200 -> 3090.53
A7: ingé études (5-10 ans expérience) | B7: =3411.66+200 -> 3611.66
A8: ingé études (10-15 ans expérience) | B8: =3891.1+200 -> 4091.1
A9: ingé études (>15 ans expérience) | B9: =4273.26+200 -> 4473.26
A10: ingé recherche (soutenance thèse > 3ans) (2-5 ans expérience) | B10: =3891.1+200 -> 4091.1
A11: ingé recherche (soutenance thèse > 3ans) (5-10 ans expérience) | B11: =4606.78+200 -> 4806.78
A12: ingé recherche (soutenance thèse > 3ans) (10-15 ans expérience) | B12: =5280.55+200 -> 5480.55
A13: ingé recherche (soutenance thèse > 3ans) (>15 ans expérience) | B13: =5634.41+200 -> 5834.41
A14: technicien cat B (0-1 an expérience) | B14: =2543.11+200 -> 2743.11
A15: technicien cat B (2-5 ans expérience) | B15: =2605.64+200 -> 2805.64
A16: technicien cat B (5-10 ans expérience) | B16: =2709.87+200 -> 2909.87
A17: technicien cat B (10-15 ans expérience) | B17: =2876.63+200 -> 3076.63
A18: technicien cat B (>15 ans expérience) | B18: =3119.83+200 -> 3319.83
